bitfinex-derivatives/quotes_BNBF0:USTF0_20250331
["timestamp","ask_amount","ask_price","bid_price","bid_amount"]
[1743412925253,1.4301417,591.14,590.3,0.27525439]
[1743412925448,1.4301417,591.13,590.28,0.27525439]
[1743412925647,1.4301417,591.12,590.31,0.27525439]
[1743412925853,4.50744478,591.11,590.32,0.27525439]
[1743412926047,1.42985136,591.1,590.28,0.27525439]
[1743412926252,1.42985136,591.09,590.33,0.27525439]
[1743412926448,1.42985136,591.08,590.27,0.33882799]
[1743412926755,1.18612406,591.08,590.27,0.33882799]
[1743412927350,1.18612406,591.07,590.27,0.33882799]
[1743412927754,0.29486153,591.06,590.27,0.33882799]
[1743412928056,1.48098559,591.06,590.27,0.33882799]
[1743412928652,0.29486153,591.06,590.27,0.33882799]
[1743412929554,1.42626297,591.17,590.27,0.33882799]
[1743412929756,0.29462687,591.05,590.27,0.33882799]
[1743412930255,1.42626935,591.23,590.27,0.33882799]
[1743412930556,1.42626935,591.22,590.27,0.33882799]
[1743412930756,1.42626935,591.21,590.27,0.33882799]
[1743412931056,0.29489401,591.22,590.28,0.27525999]
[1743412931558,1.17869704,591.21,590.28,0.27525999]
[1743412932058,1.17869704,591.21,590.27,0.33882799]
[1743412932256,0.29489401,591.22,590.27,0.33882799]
[1743412932257,1.17869704,591.2,590.28,0.27525473]
[1743412932954,2.60512886,591.19,590.28,0.27525473]
[1743412933156,1.42643182,591.18,590.28,0.27525473]
[1743412933458,1.42643182,591.17,590.28,0.27525473]
[1743412933651,3.06523926,591.18,590.28,0.27525473]
[1743412933956,4.49207312,591.17,590.28,0.27525473]
[1743412934156,3.06523926,591.17,590.28,0.27525473]
[1743412934357,1.42671017,591.16,590.28,0.27525473]
[1743412934558,3.06523926,591.16,590.28,0.27525473]
[1743412934758,4.2060171,591.15,590.28,0.27525473]
[1743412934953,1.65610981,591.04,590.28,0.27525473]
[1743412935160,5.98113052,591.03,590.28,0.27525473]
[1743412935457,5.98113052,591.02,590.28,0.27525473]
[1743412935653,5.98113052,591.01,590.28,0.27525473]
[1743412935857,5.98113052,591.0,590.28,0.27525473]
[1743412936050,4.58308874,590.99,590.28,0.27525473]
[1743412936251,4.58308874,590.98,590.28,0.27525473]
[1743412936456,4.58308874,590.97,590.28,0.27525473]
[1743412936651,4.58394024,590.96,590.28,0.27525473]
[1743412936856,3.70998274,590.95,590.28,0.27525473]
[1743412937056,3.70996923,590.94,590.28,0.27525473]
[1743412937251,4.4921557,590.93,590.28,0.27525473]
[1743412937453,1.42691644,590.92,590.28,0.27525473]
[1743412937656,4.4921557,590.91,590.28,0.27525473]
[1743412937858,1.42691644,590.9,590.28,0.27525473]
[1743412938060,3.06523926,590.89,590.28,0.27525473]
[1743412938856,3.06523926,590.88,590.28,0.27525473]
[1743412939256,1.17869704,590.87,590.28,0.27525473]
[1743412939865,1.17869704,590.86,590.28,0.27525473]
[1743412940163,1.17869704,590.85,590.28,0.27525473]
[1743412940968,1.17869704,590.84,590.28,0.27525473]
[1743412941167,1.17869704,590.84,590.27,0.33882799]
[1743412941466,1.17869704,590.84,590.28,0.27531701]
[1743412941668,1.17869704,590.83,590.28,0.27531701]
[1743412942065,1.17869704,590.82,590.28,0.27531701]
[1743412942769,1.17869704,590.81,590.28,0.27531701]
[1743412943365,0.29466055,590.92,590.28,0.27531701]
[1743412943971,1.17939241,590.91,590.28,0.27531701]
[1743412944571,2.60589279,590.9,590.28,0.27531701]
[1743412944768,1.42650038,590.89,590.28,0.27531701]
[1743412944972,1.42650038,590.88,590.28,0.27531701]
[1743412945170,1.42600598,590.87,590.28,0.27531701]
[1743412945476,3.06517154,590.88,590.28,0.27531701]
[1743412945874,0.29466928,590.86,590.28,0.27531701]
[1743412946568,3.06438417,590.85,590.28,0.27531701]
[1743412946768,3.06438417,590.85,590.27,0.33882799]
[1743412946973,1.17939241,590.84,590.28,0.27539133]
[1743412947372,1.17939241,590.83,590.28,0.27539133]
[1743412948270,1.17939241,590.82,590.28,0.27539133]
[1743412948472,1.17939241,590.82,590.27,0.33882799]
[1743412948674,1.17939241,590.82,590.29,0.27533897]
[1743412948975,0.29463809,591.02,590.3,0.27533897]
[1743412949279,1.42580947,591.01,590.31,0.27533897]
[1743412949468,1.42580947,591.0,590.32,0.27533897]
[1743412949776,1.42580947,590.99,590.33,0.27533897]
[1743412950074,5.363139,590.98,590.34,0.27533897]
[1743412950370,4.58132453,590.97,590.35,0.27533897]
[1743412950576,0.87344632,590.96,590.28,0.27533897]
[1743412950773,1.42660028,590.95,590.28,0.27533897]
[1743412950974,1.42660028,590.94,590.28,0.27533897]
[1743412951174,3.06388321,590.98,590.28,0.27533897]
[1743412951376,1.42738469,590.97,590.28,0.27533897]
[1743412951672,1.42738469,590.96,590.28,0.27533897]
[1743412951870,1.42738469,590.95,590.28,0.27533897]
[1743412952075,3.06388321,590.95,590.28,0.27533897]
[1743412952276,1.42776282,590.94,590.28,0.27533897]
[1743412952474,3.06388321,590.95,590.28,0.27533897]
[1743412953374,3.06388321,590.94,590.28,0.27533897]
[1743412953981,0.29460692,591.07,590.28,0.27533897]
[1743412953982,1.17841662,590.93,590.28,0.27533897]
[1743412954580,1.17841662,590.92,590.28,0.27533897]
[1743412955482,1.17841662,590.92,590.29,0.33881651]
[1743412955779,3.16488004,591.14,590.3,0.27533897]
[1743412955981,4.59550241,591.13,590.31,0.33880503]
[1743412956185,1.43062831,591.12,590.32,0.27533897]
[1743412956482,1.43062831,591.11,590.33,0.33879355]
[1743412956681,1.43062831,591.1,590.34,0.27533897]
[1743412956885,3.07402678,591.09,590.35,0.33878207]
[1743412957086,1.43078568,591.08,590.36,0.27533897]
[1743412957286,3.07402678,591.09,590.36,0.27533897]
[1743412957488,3.07402678,591.07,590.36,0.27533897]
[1743412957789,4.50580918,591.06,590.37,0.3387706]
[1743412957987,3.07402678,591.06,590.38,0.27533897]
[1743412958193,3.07402678,591.06,590.39,0.33875912]
[1743412958383,3.07402678,591.05,590.4,0.27533897]
[1743412958585,3.07402678,591.05,590.4,0.61409235]
[1743412958789,3.07402678,591.05,590.41,0.27533897]
[1743412958984,1.18231799,591.04,590.41,0.27533897]
[1743412959188,1.18231799,591.03,590.41,0.27533897]
[1743412959989,1.40582161,591.22,590.41,0.27533897]
[1743412960191,6.01441843,591.21,590.41,0.27533897]
[1743412960390,4.60876524,591.2,590.41,0.27533897]
[1743412960590,4.60876524,591.19,590.42,0.33874191]
[1743412960792,4.60876524,591.18,590.43,0.27533897]
[1743412961091,2.31423427,591.17,590.43,0.27533897]
[1743412961394,4.6147896,591.16,590.43,0.27533897]
[1743412961589,2.31432313,591.15,590.43,0.27533897]
[1743412961793,1.43463576,591.14,590.43,0.27533897]
[1743412961989,1.43463576,591.13,590.43,0.27533897]
[1743412962186,1.43463576,591.12,590.43,0.27533897]
[1743412962387,1.43463576,591.11,590.43,0.27533897]
[1743412962594,1.43880264,591.1,590.43,0.27533897]
[1743412962906,3.08591132,591.12,590.43,0.27533897]
[1743412963091,1.18688897,591.09,590.43,0.27533897]
[1743412963493,1.18688897,591.08,590.43,0.27533897]
[1743412964196,0.29452713,591.23,590.43,0.27533897]
[1743412964395,4.62955595,591.22,590.43,0.61407514]
[1743412964592,2.07361304,591.21,590.44,0.27533897]
[1743412964891,0.88260973,591.2,590.43,0.33873617]
[1743412965095,3.0966086,591.21,590.44,0.27518687]
[1743412965297,1.19100331,591.19,590.44,0.6139173]
[1743412965489,1.19100331,591.19,590.45,0.27518687]
[1743412965695,1.19100331,591.19,590.46,0.27518687]
[1743412965893,0.29449722,591.3,590.47,0.27518687]
[1743412966091,0.29449722,591.3,590.44,0.33873043]
[1743412966092,0.763,591.44,590.48,0.27518687]
[1743412966294,0.763,591.44,590.5,0.33869602]
[1743412966495,0.763,591.44,590.51,0.27518687]
[1743412967200,0.763,591.44,590.52,0.33868454]
[1743412967398,0.763,591.44,590.53,0.27518687]
[1743412968201,0.763,591.44,590.54,0.33867307]
[1743412968394,0.763,591.44,590.55,0.27518687]
[1743412968595,0.763,591.44,590.56,0.61371578]
[1743412968795,0.763,591.44,590.57,0.61371005]
[1743412969000,0.763,591.44,590.58,0.27505418]
[1743412969201,0.763,591.44,590.59,0.3386444]
[1743412969501,0.763,591.44,590.6,0.27505418]
[1743412969699,0.763,591.44,590.61,0.33863293]
[1743412969902,0.763,591.44,590.62,0.27505418]
[1743412970098,0.763,591.44,590.63,0.33862147]
[1743412970305,0.763,591.44,590.64,0.27505418]
[1743412970505,0.763,591.44,590.65,0.33861]
[1743412970808,0.763,591.44,590.66,0.27505418]
[1743412971100,0.763,591.44,590.67,0.33859854]
[1743412971300,0.763,591.44,590.68,0.27505418]
[1743412971496,0.763,591.44,590.69,0.33858707]
[1743412971696,0.763,591.44,590.7,0.27505418]
[1743412971902,0.763,591.44,590.71,0.33857561]
[1743412972096,0.763,591.44,590.72,0.27505418]
[1743412972401,0.763,591.44,590.73,0.33856414]
[1743412972604,0.763,591.44,590.74,0.27505418]
[1743412972798,0.763,591.44,590.74,0.61361259]
[1743412973004,0.763,591.44,590.75,0.27505418]
[1743412977605,0.763,591.44,590.76,0.27509282]
[1743412977800,1.19148485,591.35,590.75,0.27509282]
[1743412978105,1.19148485,591.35,590.76,0.27509282]
[1743412978306,1.19148485,591.35,590.75,0.27509282]
[1743412978606,3.71909867,591.54,590.75,0.27509282]
[1743412978807,0.29440379,591.45,590.75,0.27509282]
[1743412980104,1.19093221,591.35,590.75,0.27509282]
[1743412980507,1.90546998,591.44,590.75,0.27509282]
[1743412980802,0.29444614,591.34,590.75,0.27509282]
[1743412982208,1.19071802,591.33,590.75,0.27509282]
[1743412982408,1.19071802,591.33,589.55,0.27509282]
[1743412982608,1.19071802,591.33,589.54,2.5552563]
[1743412982609,1.19071802,591.33,589.57,0.33923028]
[1743412982809,1.19071802,591.32,589.58,0.27509282]
[1743412983010,1.19071802,591.32,589.59,0.27509282]
[1743412983405,4.59933273,591.51,589.61,0.33920727]
[1743412983610,4.59933273,591.5,589.62,0.27516134]
[1743412983907,4.59933273,591.49,589.63,0.27516134]
[1743412984211,1.19057076,591.35,589.75,2.5552563]
[1743412984404,1.19057076,591.35,589.76,0.27516134]
[1743412984610,1.19057076,591.35,589.77,0.27516134]
[1743412984810,0.29458198,591.34,589.79,0.33910374]
[1743412985011,1.48515274,591.34,589.8,0.27516134]
[1743412985211,1.48515274,591.34,589.82,0.3390865]
[1743412985413,1.19057076,591.33,589.83,0.27516134]
[1743412985606,1.19057076,591.33,589.85,0.33906925]
[1743412985807,1.19057076,591.33,589.86,0.27516134]
[1743412986014,1.19057076,591.33,589.88,0.33905201]
[1743412986214,1.19057076,591.32,589.89,0.27516134]
[1743412986415,1.19057076,591.32,589.91,0.33903476]
[1743412986612,1.19057076,591.32,589.92,0.27516134]
[1743412986915,0.68,591.33,589.94,0.33901752]
[1743412987120,0.68,591.33,589.95,0.27516134]
[1743412987308,0.68,591.33,589.97,0.33900028]
[1743412987515,0.68,591.33,589.98,0.27516134]
[1743412987714,1.44115767,591.32,590.0,0.33898305]
[1743412987909,1.48555097,591.32,590.01,0.27516134]
[1743412988114,1.48555097,591.32,590.03,0.33896581]
[1743412988315,1.48555097,591.32,590.04,0.27515789]
[1743412988511,1.19099268,591.31,590.06,0.33894858]
[1743412988812,1.19099268,591.31,590.07,0.27515789]
[1743412989017,1.19099268,591.31,590.09,0.33893134]
[1743412989211,1.19099268,591.3,590.1,0.27515789]
[1743412989417,1.19099268,591.3,590.12,0.33891411]
[1743412989618,1.19099268,591.3,590.13,0.27515789]
[1743412989819,0.68,591.33,590.14,0.27515789]
[1743412990119,0.68,591.33,590.15,0.27515789]
[1743412990314,0.68,591.33,590.16,0.61404903]
[1743412990516,0.68,591.33,590.18,0.33887966]
[1743412990813,0.68,591.33,590.19,0.27515789]
[1743412991013,0.68,591.33,590.21,0.33886243]
[1743412991213,0.68,591.33,590.22,0.27515789]
[1743412991516,0.68,591.33,590.24,0.33884521]
[1743412991713,0.68,591.33,590.25,0.27515789]
[1743412991916,0.68,591.33,590.27,0.33882799]
[1743412992112,0.68,591.33,590.28,0.27515789]
[1743412992418,0.68,591.33,590.3,0.33881077]
[1743412992616,0.68,591.33,590.31,0.27515789]
[1743412992820,0.68,591.33,590.33,0.33879355]
[1743412993020,0.68,591.33,590.34,0.27515789]
[1743412993321,0.68,591.33,590.35,0.61393996]
[1743412993520,0.68,591.33,589.96,2.5552563]
[1743412993521,0.68,591.33,590.37,0.3387706]
[1743412993714,0.68,591.33,590.38,0.27508542]
[1743412993919,0.68,591.33,590.4,0.33875338]
[1743412994118,0.68,591.33,590.41,0.27508542]
[1743412994316,0.68,591.33,590.43,0.33873617]
[1743412994520,0.68,591.33,590.44,0.27508542]
[1743412994717,0.68,591.33,590.46,0.33871896]
[1743412994919,0.68,591.33,590.47,0.27508542]
[1743412995114,0.68,591.33,590.46,0.33871896]
[1743412995319,0.68,591.33,590.47,0.27503857]
[1743412995518,0.68,591.33,590.49,0.33870175]
[1743412995715,0.68,591.33,590.5,0.27503857]
[1743412995916,0.68,591.33,590.52,0.33868454]
[1743412996120,0.68,591.33,590.53,0.2750286]
[1743412996320,0.68,591.33,590.54,0.33867307]
[1743412996519,0.68,591.33,590.55,0.2750286]
[1743412996717,0.68,591.33,590.56,0.3386616]
[1743412996921,0.68,591.33,590.57,0.2750286]
[1743412997324,1.244,591.33,590.57,0.2750286]
[1743412997520,1.244,591.33,590.58,0.2750286]
[1743412997726,1.244,591.33,590.59,0.2750286]
[1743412997926,1.244,591.33,590.6,0.61366727]
[1743412998126,1.244,591.33,590.61,0.61366153]
[1743412998322,1.244,591.33,590.62,0.6136558]
[1743412998520,1.244,591.33,590.63,0.61365007]
[1743412998725,1.244,591.33,590.64,0.61364433]
[1743412999027,1.244,591.33,590.65,0.61357304]
[1743412999228,1.244,591.33,590.66,0.27496304]
[1743412999421,1.244,591.33,590.67,0.33859854]
[1743412999626,1.244,591.33,590.68,0.27496304]
[1743412999821,1.244,591.33,590.69,0.33858707]
[1743413000027,1.244,591.33,590.7,0.27496304]
[1743413000223,1.244,591.33,590.71,0.33857561]
[1743413000429,1.244,591.33,590.72,0.27496304]
[1743413000629,1.244,591.33,590.73,0.33856414]
[1743413000928,1.244,591.33,590.74,0.27496304]
[1743413001125,1.244,591.33,590.75,0.27496304]
[1743413001326,1.829,591.33,590.76,0.27496304]
[1743413001527,1.829,591.33,590.77,0.27496304]
[1743413001724,1.829,591.33,590.73,0.33856414]
[1743413001725,1.829,591.33,590.78,0.27496304]
[1743413001925,1.829,591.33,590.79,0.27496304]
[1743413002128,1.829,591.33,590.8,0.27496304]
[1743413002328,1.829,591.33,590.73,0.33856414]
[1743413002329,1.829,591.33,590.81,0.27496304]
[1743413002530,1.829,591.33,590.82,0.27496304]
[1743413002729,1.829,591.33,590.83,0.27496304]
[1743413003032,1.829,591.33,590.84,0.27496304]
[1743413003224,1.829,591.33,590.85,0.61345842]
[1743413003426,1.829,591.33,590.86,0.27496304]
[1743413003726,1.829,591.33,590.85,0.33849538]
[1743413003727,1.829,591.33,590.87,0.27496304]
[1743413003932,1.829,591.33,590.88,0.27496304]
[1743413004131,1.829,591.33,590.89,0.27496304]
[1743413004333,1.829,591.33,590.9,0.61342978]
[1743413004530,1.829,591.33,590.91,0.61342405]
[1743413004730,1.829,591.33,590.92,0.27496304]
[1743413005026,1.829,591.33,590.93,0.27496304]
[1743413005232,1.829,591.33,590.92,0.27496304]
[1743413005430,1.829,591.33,590.93,0.27496304]
[1743413005626,1.829,591.33,590.94,0.27496304]
[1743413005836,1.829,591.33,590.92,0.27496304]
[1743413006033,1.829,591.33,590.95,0.27496304]
[1743413006335,1.829,591.33,590.96,0.27496304]
[1743413006535,1.829,591.33,590.92,0.27496304]
[1743413006735,1.829,591.33,590.97,0.27496304]
[1743413007035,1.829,591.33,590.98,0.27496304]
[1743413007229,1.829,591.33,590.92,0.27496304]
[1743413007432,1.829,591.33,590.93,0.27496304]
[1743413007635,1.829,591.33,590.92,0.27496304]
[1743413007933,1.829,591.33,590.93,0.2749668]
[1743413008132,1.829,591.33,590.92,0.2749668]
[1743413008332,1.829,591.33,590.94,0.2749668]
[1743413008533,1.829,591.33,590.95,0.2749668]
[1743413008729,1.829,591.33,590.92,0.2749668]
[1743413008934,1.829,591.33,590.93,0.2749668]
[1743413009137,1.829,591.33,590.92,0.2749668]
[1743413009439,1.829,591.33,590.93,0.2749668]
[1743413009635,1.829,591.33,590.92,0.2749668]
[1743413014635,1.829,591.33,590.92,0.61342209]
[1743413015036,1.829,591.33,590.93,0.2749668]
[1743413018340,1.244,591.33,590.93,0.2749668]
[1743413018535,1.244,591.33,590.92,0.33845529]
[1743413018839,1.244,591.33,590.93,0.27494849]
[1743413023841,1.244,591.33,590.92,0.33845529]
[1743413024043,1.244,591.33,590.94,0.27497142]
[1743413024245,1.244,591.33,590.95,0.27497142]
[1743413024547,1.244,591.33,590.96,0.27497142]
[1743413024739,1.244,591.33,590.93,0.27497142]
[1743413024937,1.244,591.33,590.94,0.27497142]
[1743413025142,1.244,591.33,590.93,0.27497142]
[1743413025339,1.244,591.33,590.94,0.27497142]
[1743413025546,1.244,591.33,590.93,0.27497142]
[1743413027447,1.244,591.33,590.94,0.27501768]
[1743413027742,1.244,591.33,590.95,0.27501768]
[1743413027946,1.244,591.33,590.96,0.27501768]
[1743413028144,1.244,591.33,590.47,2.5552563]
[1743413028145,1.244,591.33,590.97,0.27501768]
[1743413028346,1.244,591.33,590.48,0.27501768]
[1743413028545,1.244,591.33,590.49,0.61371943]
[1743413028745,1.244,591.33,590.5,0.6137137]
[1743413029047,1.244,591.33,590.49,0.29443991]
[1743413029048,1.244,591.33,590.51,0.61370796]
[1743413029249,1.244,591.33,590.52,0.61374507]
[1743413029445,1.244,591.33,590.53,0.61373934]
[1743413029747,1.244,591.33,590.54,0.6137336]
[1743413030048,1.244,591.33,590.55,0.61372787]
[1743413030247,1.244,591.33,590.56,0.61372213]
[1743413030448,1.244,591.33,590.57,0.6137164]
[1743413030648,1.244,591.33,590.58,0.61371067]
[1743413030847,1.244,591.33,590.59,0.3386444]
[1743413031147,1.244,591.33,590.6,0.27506604]
[1743413031349,1.244,591.33,590.61,0.33863293]
[1743413031546,1.244,591.33,590.62,0.27506604]
[1743413031743,1.244,591.33,590.62,0.61369324]
[1743413031942,1.244,591.33,590.63,0.27506604]
[1743413032142,1.976,591.33,590.63,0.27506604]
[1743413034047,2.27045112,591.33,590.63,0.27506604]
[1743413036145,1.1960042,591.32,590.63,0.27506604]
[1743413037049,1.1960042,591.31,590.63,0.27506604]
[1743413038048,1.1960042,591.3,590.63,0.27506604]
[1743413038650,0.2944561,591.32,590.63,0.27506604]
[1743413039045,1.19560212,591.31,590.63,0.27506604]
[1743413039251,2.33205923,591.3,590.63,0.27506604]
[1743413039446,1.44631271,591.29,590.63,0.27506604]
[1743413039650,3.10797907,591.28,590.62,0.3386272]
[1743413039850,3.10797907,591.28,590.63,0.27517236]
[1743413040248,0.2944561,591.32,590.63,0.27517236]
[1743413041252,0.2944561,591.32,590.64,0.2751681]
[1743413041453,0.2944561,591.32,590.65,0.2751681]
[1743413041655,0.2944561,591.32,590.63,0.2751681]
[1743413041852,0.2944561,591.32,590.64,0.2751681]
[1743413042048,0.9034561,591.32,590.63,0.2751681]
[1743413042248,0.9034561,591.32,590.64,0.2751681]
[1743413042453,0.9034561,591.32,590.63,0.2751681]
[1743413042647,0.9034561,591.32,590.64,0.2751681]
[1743413042952,0.609,591.32,590.65,0.27509004]
[1743413043253,0.609,591.32,590.66,0.27509004]
[1743413043456,0.609,591.32,590.63,0.27509004]
[1743413043655,0.609,591.32,590.62,0.3386272]
[1743413043656,0.609,591.32,590.67,0.27509004]
[1743413043964,0.609,591.32,590.68,0.27509004]
[1743413044254,0.609,591.32,590.62,0.3386272]
[1743413044255,0.609,591.32,590.69,0.27509004]
[1743413044455,0.609,591.32,590.63,0.27509004]
[1743413044657,0.609,591.32,590.64,0.27509004]
[1743413044857,0.609,591.32,590.63,0.27509004]
[1743413045155,0.609,591.32,590.64,0.27509004]
[1743413045356,0.609,591.32,590.65,0.27509004]
[1743413045555,0.609,591.32,590.62,0.3386272]
[1743413045556,0.609,591.32,590.66,0.27509004]
[1743413045758,0.609,591.32,590.63,0.27509004]
[1743413045953,0.609,591.32,590.64,0.27509004]
[1743413046256,0.609,591.32,590.65,0.27509004]
[1743413046456,0.609,591.32,590.66,0.27511409]
[1743413046755,0.609,591.32,590.67,0.27511409]
[1743413046953,0.609,591.32,590.68,0.27511409]
[1743413047150,0.609,591.32,590.63,0.27511409]
[1743413047353,0.609,591.32,590.64,0.27511409]
[1743413047548,0.609,591.32,590.63,0.27511409]
[1743413047753,0.609,591.32,590.64,0.27511409]
[1743413047954,0.609,591.32,590.63,0.27511409]
[1743413048254,0.609,591.32,590.64,0.27511742]
[1743413048555,0.609,591.32,590.65,0.27511742]
[1743413048956,0.609,591.32,590.66,0.27511742]
[1743413049149,0.609,591.32,590.63,0.27511742]
[1743413049350,0.609,591.32,590.64,0.27511742]
[1743413049554,1.19643121,591.31,590.65,0.27511742]
[1743413049757,1.19643121,591.31,590.63,0.27511742]
[1743413049956,0.645,591.3,590.64,0.27511742]
[1743413050257,0.645,591.3,590.65,0.27511742]
[1743413050455,0.645,591.3,590.63,0.27511742]
[1743413050651,0.645,591.3,590.64,0.27511742]
[1743413050851,0.645,591.3,590.65,0.27511742]
[1743413051155,0.645,591.3,590.66,0.27511742]
[1743413051356,0.645,591.3,590.63,0.27511742]
[1743413053153,0.645,591.3,590.64,0.33861573]
[1743413053357,0.645,591.3,590.65,0.27511742]
[1743413053657,0.645,591.3,590.66,0.27506881]
[1743413059957,0.69,591.29,590.66,0.27506881]
[1743413062558,0.69,591.29,590.67,0.27518392]
[1743413062862,5.43973692,591.28,590.68,0.27518392]
[1743413063063,1.44627542,591.27,590.66,0.27518392]
[1743413063258,1.44627542,591.26,590.66,0.27518392]
[1743413063457,2.64157023,591.25,590.66,0.27518392]
[1743413063657,1.19520232,591.25,590.66,0.27518392]
[1743413063862,1.44634876,591.24,590.66,0.27518392]
[1743413064062,1.19520232,591.24,590.66,0.27518392]
[1743413064857,2.51467628,591.23,590.66,0.27518392]
[1743413065061,1.44619277,591.22,590.66,0.27518392]
[1743413065256,2.26368583,591.23,590.66,0.27518392]
[1743413065458,1.19520232,591.21,590.66,0.27518392]
[1743413066462,1.19520232,591.2,590.66,0.27518392]
[1743413067061,1.19520232,591.19,590.66,0.27518392]
[1743413067661,0.774,591.23,590.66,0.27518392]
[1743413067859,1.06848974,591.23,590.66,0.27518392]
[1743413068263,0.774,591.23,590.66,0.27518392]
[1743413076974,0.774,591.23,590.65,0.33861]
[1743413077171,0.774,591.23,590.66,0.27514051]
[1743413081875,0.69,591.29,590.66,0.27514051]
[1743413082277,0.69,591.29,590.65,0.33861]
[1743413082575,0.69,591.29,590.66,0.27506596]
[1743413083172,0.69,591.29,590.67,0.33859854]
[1743413083376,0.69,591.29,590.68,0.27506596]
[1743413083576,0.69,591.29,590.69,0.33858707]
[1743413083777,0.69,591.29,590.7,0.27506596]
[1743413083971,1.519,591.28,590.71,0.33857561]
[1743413084174,1.519,591.28,590.72,0.27506596]
[1743413084370,1.519,591.28,590.73,0.33856414]
[1743413084570,1.519,591.28,590.74,0.27506596]
[1743413084778,1.519,591.28,590.75,0.33855268]
[1743413084970,1.519,591.28,590.76,0.27500859]
[1743413085371,1.519,591.28,590.77,0.33854122]
[1743413085570,1.519,591.28,590.78,0.27500859]
[1743413085771,0.671,591.27,590.78,0.61354408]
[1743413085978,0.671,591.27,590.78,0.33853549]
[1743413086178,0.671,591.27,590.79,0.27500372]
[1743413086772,0.671,591.27,590.8,0.27500372]
[1743413086974,0.671,591.27,590.79,0.27500372]
[1743413087173,0.671,591.27,590.8,0.33852403]
[1743413087375,0.671,591.27,590.81,0.27500372]
[1743413087580,0.671,591.27,590.82,0.33851257]
[1743413087879,0.513,591.26,590.83,0.27500372]
[1743413088074,0.513,591.26,590.84,0.33850111]
[1743413088278,0.513,591.26,590.85,0.27500372]
[1743413088480,0.513,591.26,590.86,0.33848965]
[1743413088783,0.513,591.26,590.87,0.27500372]
[1743413089886,0.513,591.26,590.88,0.3384782]
[1743413090080,0.513,591.26,590.89,0.27500372]
[1743413091375,0.513,591.26,590.88,0.3384782]
[1743413091577,0.513,591.26,590.89,0.27495747]
[1743413093280,0.513,591.26,590.9,0.27495385]
[1743413093480,0.513,591.26,590.89,0.27495385]
[1743413093685,0.513,591.26,590.88,0.3384782]
[1743413093881,0.513,591.26,590.9,0.27495181]
[1743413094085,0.513,591.26,590.91,0.27495181]
[1743413094286,0.513,591.26,590.89,0.27495181]
[1743413094881,0.513,591.26,590.89,0.61342428]
[1743413095082,0.513,591.26,590.9,0.61341855]
[1743413095283,0.513,591.26,590.91,0.61341282]
[1743413095489,0.513,591.26,590.92,0.6134071]
[1743413095687,0.513,591.26,590.93,0.61340137]
[1743413095888,0.513,591.26,590.94,0.27495181]
[1743413098492,0.513,591.26,590.95,0.3384381]
[1743413098695,0.513,591.26,590.96,0.27495181]
[1743413099898,0.513,591.26,590.97,0.27495181]
[1743413100199,0.513,591.26,590.98,0.27495181]
[1743413100400,0.513,591.26,590.99,0.27495181]
[1743413100695,0.513,591.26,591.0,0.61336128]
[1743413100896,1.519,591.28,591.01,0.61335555]
[1743413101096,1.519,591.28,591.02,0.27495181]
[1743413101392,1.519,591.28,591.03,0.27495181]
[1743413103696,1.519,591.28,591.02,0.33839802]
[1743413103899,1.519,591.28,591.03,0.27488743]
[1743413107603,1.519,591.28,591.04,0.27488743]
[1743413107899,1.519,591.28,591.02,0.33839802]
[1743413107900,1.519,591.28,591.05,0.27488743]
[1743413108101,1.519,591.28,591.03,0.27488743]
[1743413111800,1.519,591.28,591.04,0.27490724]
[1743413112004,1.519,591.28,591.03,0.27490724]
[1743413112200,1.519,591.28,591.04,0.27490724]
[1743413112404,1.519,591.28,591.03,0.27490724]
[1743413112604,1.519,591.28,591.05,0.27490724]
[1743413112904,1.519,591.28,591.06,0.27490724]
[1743413113104,1.519,591.28,591.03,0.27490724]
[1743413116701,1.519,591.28,591.04,0.27496025]
[1743413117004,1.519,591.28,591.05,0.27496025]
[1743413117405,1.519,591.28,591.06,0.27496025]
[1743413117705,1.519,591.28,591.07,0.27496025]
[1743413118005,1.519,591.28,591.08,0.27496025]
[1743413118408,1.519,591.28,591.09,0.27496025]
[1743413118602,1.519,591.28,591.02,0.33839802]
[1743413118603,1.519,591.28,591.1,0.27496025]
[1743413118808,1.519,591.28,591.03,0.27496025]